[Event "*** Titled Tuesday 3|2 Blitz"]
[Site "Chess.com"]
[Date "2015.02.24"]
[Round "1"]
[White "Konavets"]
[Black "190l"]
[Result "1-0"]
[WhiteElo "2357"]
[BlackElo "1968"]
[TimeControl "180+2"]
[EndTime "11:03:22 PST"]
[Termination "Konavets won by resignation"]

1. e4 {[%clk 0:02:56.2]} 1... c5 {[%clk 0:02:58.8]} 2. Nc3 {[%clk 0:02:57.6]}
2... Nc6 {[%clk 0:02:59.5]} 3. Nf3 {[%clk 0:02:59.3]} 3... g6 {[%clk 0:03:00.3]}
4. d4 {[%clk 0:03:00.1]} 4... cxd4 {[%clk 0:03:02.2]} 5. Nxd4 {[%clk 0:03:01.4]}
5... Bg7 {[%clk 0:03:03.9]} 6. Be3 {[%clk 0:03:02.3]} 6... Nf6 {[%clk
0:03:05.4]} 7. Nxc6 {[%clk 0:03:03.7]} 7... dxc6 {[%clk 0:03:04.9]} 8. Qxd8+
{[%clk 0:03:04.2]} 8... Kxd8 {[%clk 0:03:06.8]} 9. O-O-O+ {[%clk 0:03:04.8]}
9... Ke8 {[%clk 0:03:06.1]} 10. f3 {[%clk 0:03:03.6]} 10... e5 {[%clk
0:03:07.1]} 11. Bc4 {[%clk 0:03:03.6]} 11... b6 {[%clk 0:03:06.5]} 12. Rd2
{[%clk 0:03:02.2]} 12... Ke7 {[%clk 0:03:07.3]} 13. Rhd1 {[%clk 0:03:02.5]}
13... Bb7 {[%clk 0:02:40.3]} 14. f4 {[%clk 0:02:53.4]} 14... Rhd8 {[%clk
0:02:07]} 15. fxe5 {[%clk 0:02:50.3]} 15... Ng4 {[%clk 0:02:04.8]} 16. Bg5+
{[%clk 0:02:48.2]} 16... f6 {[%clk 0:02:06.1]} 17. exf6+ {[%clk 0:02:48.1]}
17... Bxf6 {[%clk 0:02:06.3]} 18. Bxf6+ {[%clk 0:02:49.1]} 18... Nxf6 {[%clk
0:02:08.2]} 19. e5 {[%clk 0:02:49.4]} 19... Ng4 {[%clk 0:02:03.2]} 20. Rd6
{[%clk 0:02:19.1]} 20... Nxe5 {[%clk 0:01:59.3]} 21. Re6+ {[%clk 0:02:19.7]}
21... Kf8 {[%clk 0:01:58.6]} 22. Rxe5 {[%clk 0:02:21.1]} 1-0

[Event "*** Titled Tuesday 3|2 Blitz"]
[Site "Chess.com"]
[Date "2015.02.24"]
[Round "1"]
[White "AndreyOstrovskiy"]
[Black "ilmago"]
[Result "1-0"]
[WhiteElo "2341"]
[BlackElo "1877"]
[TimeControl "180+2"]
[EndTime "11:03:50 PST"]
[Termination "AndreyOstrovskiy won by resignation"]

1. e4 {[%clk 0:02:58.4]} 1... c5 {[%clk 0:02:57.6]} 2. Nf3 {[%clk 0:02:59.1]}
2... d6 {[%clk 0:02:58]} 3. d4 {[%clk 0:03:00.2]} 3... cxd4 {[%clk 0:02:59.9]}
4. Nxd4 {[%clk 0:03:02.1]} 4... Nf6 {[%clk 0:03:01.1]} 5. Nc3 {[%clk 0:03:03.8]}
5... e6 {[%clk 0:03:01.4]} 6. Bc4 {[%clk 0:03:04.1]} 6... Be7 {[%clk 0:03:00.7]}
7. O-O {[%clk 0:03:04.9]} 7... O-O {[%clk 0:03:01.3]} 8. Be3 {[%clk 0:03:06.1]}
8... a6 {[%clk 0:03:01.7]} 9. a4 {[%clk 0:03:06.9]} 9... Nc6 {[%clk 0:02:58.5]}
10. Kh1 {[%clk 0:03:07.9]} 10... Bd7 {[%clk 0:02:57.9]} 11. Qe2 {[%clk
0:03:08.8]} 11... Rc8 {[%clk 0:02:58.6]} 12. Rad1 {[%clk 0:03:09.8]} 12... Qc7
{[%clk 0:02:56.3]} 13. Bb3 {[%clk 0:03:10.2]} 13... Na5 {[%clk 0:02:54.9]} 14.
Ba2 {[%clk 0:03:11.5]} 14... Rfd8 {[%clk 0:02:52.7]} 15. f4 {[%clk 0:03:10.5]}
15... Nc4 {[%clk 0:02:35.9]} 16. Bc1 {[%clk 0:03:11.3]} 16... Be8 {[%clk
0:02:32.2]} 17. f5 {[%clk 0:03:11.5]} 17... Bd7 {[%clk 0:02:30]} 18. g4 {[%clk
0:03:06.4]} 18... Re8 {[%clk 0:02:22.2]} 19. g5 {[%clk 0:03:05.3]} 19... Nxe4
{[%clk 0:02:21.1]} 20. Qxe4 {[%clk 0:02:58.4]} 20... exf5 {[%clk 0:02:16.4]} 21.
Qg2 {[%clk 0:02:58.3]} 21... d5 {[%clk 0:02:06.9]} 22. Nxd5 {[%clk 0:02:58]}
22... Qe5 {[%clk 0:02:06.3]} 23. Rfe1 {[%clk 0:02:53.1]} 23... Qd6 {[%clk
0:01:59.1]} 24. Bf4 {[%clk 0:02:49.8]} 24... Qc5 {[%clk 0:01:57.3]} 25. Bxc4
{[%clk 0:02:49.7]} 25... Qxc4 {[%clk 0:01:53.3]} 26. Nxe7+ {[%clk 0:02:50.4]}
26... Rxe7 {[%clk 0:01:53.8]} 27. Rxe7 {[%clk 0:02:51.5]} 27... Bc6 {[%clk
0:01:49.4]} 28. Nxc6 {[%clk 0:02:51.9]} 28... Qxf4 {[%clk 0:01:50.3]} 29. Nd8
{[%clk 0:02:47.6]} 1-0

[Event "*** Titled Tuesday 3|2 Blitz"]
[Site "Chess.com"]
[Date "2015.02.24"]
[Round "1"]
[White "zmaj23"]
[Black "megarompa"]
[Result "1/2-1/2"]
[WhiteElo "2311"]
[BlackElo "2665"]
[TimeControl "180+2"]
[EndTime "11:04:16 PST"]
[Termination "Game drawn by agreement"]

1. e4 {[%clk 0:02:59.2]} 1... e5 {[%clk 0:02:55.2]} 2. Nc3 {[%clk 0:02:59.7]}
2... Nc6 {[%clk 0:02:57.1]} 3. Bc4 {[%clk 0:02:59]} 3... g6 {[%clk 0:02:58.4]}
4. d3 {[%clk 0:02:59.1]} 4... Bg7 {[%clk 0:02:59.2]} 5. f4 {[%clk 0:02:59.3]}
5... d6 {[%clk 0:02:57.7]} 6. Nf3 {[%clk 0:02:57.6]} 6... Nf6 {[%clk 0:02:59.3]}
7. O-O {[%clk 0:02:55.7]} 7... O-O {[%clk 0:03:00.6]} 8. Qe1 {[%clk 0:02:39.1]}
8... Nd4 {[%clk 0:02:55.8]} 9. Nxd4 {[%clk 0:02:34.7]} 9... exd4 {[%clk
0:02:57.7]} 10. Nd5 {[%clk 0:02:35.2]} 10... Nxd5 {[%clk 0:02:50.8]} 11. Bxd5
{[%clk 0:02:37.1]} 11... c6 {[%clk 0:02:52.7]} 12. Bb3 {[%clk 0:02:32.9]} 12...
a5 {[%clk 0:02:48.1]} 13. a4 {[%clk 0:02:33.2]} 13... d5 {[%clk 0:02:44]} 14. f5
{[%clk 0:02:29.6]} 14... dxe4 {[%clk 0:02:28.4]} 15. fxg6 {[%clk 0:02:20.6]}
15... hxg6 {[%clk 0:02:26]} 16. Qxe4 {[%clk 0:02:22]} 16... Bf5 {[%clk
0:02:27.3]} 17. Rxf5 {[%clk 0:01:45.6]} 17... gxf5 {[%clk 0:02:29.2]} 18. Qxf5
{[%clk 0:01:47.5]} 18... Qf6 {[%clk 0:02:22.5]} 19. Qh5 {[%clk 0:01:48.3]} 19...
Rae8 {[%clk 0:02:16.2]} 20. Bg5 {[%clk 0:01:41]} 20... Re5 {[%clk 0:02:13]} 21.
h4 {[%clk 0:01:39.2]} 21... b5 {[%clk 0:02:04.3]} 22. Rf1 {[%clk 0:01:30.5]}
22... Rf5 {[%clk 0:02:05]} 1/2-1/2

[Event "*** Titled Tuesday 3|2 Blitz"]
[Site "Chess.com"]
[Date "2015.02.24"]
[Round "1"]
[White "destroyer305"]
[Black "Inopov"]
[Result "0-1"]
[WhiteElo "2128"]
[BlackElo "2463"]
[TimeControl "180+2"]
[EndTime "11:05:36 PST"]
[Termination "Inopov won by resignation"]

1. e4 {[%clk 0:02:55.2]} 1... e6 {[%clk 0:02:59.1]} 2. d4 {[%clk 0:02:52]} 2...
d5 {[%clk 0:03:00.5]} 3. Nc3 {[%clk 0:02:52.9]} 3... Nf6 {[%clk 0:03:01.2]} 4.
Bg5 {[%clk 0:02:53.5]} 4... dxe4 {[%clk 0:03:01.1]} 5. Nxe4 {[%clk 0:02:54]}
5... Be7 {[%clk 0:03:02.7]} 6. Bd3 {[%clk 0:02:53.8]} 6... a6 {[%clk 0:02:53.9]}
7. Nf3 {[%clk 0:02:52.3]} 7... b5 {[%clk 0:02:51.3]} 8. Qe2 {[%clk 0:02:50.2]}
8... Bb7 {[%clk 0:02:50.2]} 9. Bxf6 {[%clk 0:02:43.9]} 9... gxf6 {[%clk
0:02:50.8]} 10. O-O-O {[%clk 0:02:43.4]} 10... Nd7 {[%clk 0:02:43.7]} 11. Nc5
{[%clk 0:02:37.4]} 11... Bxc5 {[%clk 0:02:19.7]} 12. dxc5 {[%clk 0:02:36.5]}
12... Qe7 {[%clk 0:02:20.8]} 13. Be4 {[%clk 0:02:24.1]} 13... Bxe4 {[%clk
0:02:04.6]} 14. Qxe4 {[%clk 0:02:22.9]} 14... O-O {[%clk 0:02:06.1]} 15. c6
{[%clk 0:01:32.9]} 15... Nb6 {[%clk 0:02:06.2]} 16. Qh4 {[%clk 0:01:33.3]} 16...
Kh8 {[%clk 0:01:54.5]} 17. Rd4 {[%clk 0:01:20.9]} 17... Rg8 {[%clk 0:01:50.6]}
18. g3 {[%clk 0:01:08]} 18... Nc4 {[%clk 0:01:51]} 19. Nd2 {[%clk 0:01:00.6]}
19... Ne5 {[%clk 0:01:47.6]} 20. Re1 {[%clk 0:00:53.2]} 20... Nxc6 {[%clk
0:01:46.5]} 21. Rf4 {[%clk 0:00:54.1]} 21... Rg6 {[%clk 0:01:43]} 22. Ne4 {[%clk
0:00:54.9]} 22... f5 {[%clk 0:01:43.3]} 23. Nc5 {[%clk 0:00:42.5]} 23... Qxc5
{[%clk 0:01:41.8]} 0-1

[Event "*** Titled Tuesday 3|2 Blitz"]
[Site "Chess.com"]
[Date "2015.02.24"]
[Round "1"]
[White "GeorgMeier"]
[Black "raskolnnikov"]
[Result "1-0"]
[WhiteElo "2660"]
[BlackElo "2273"]
[TimeControl "180+2"]
[EndTime "11:05:57 PST"]
[Termination "GeorgMeier won by resignation"]

1. Nf3 {[%clk 0:03:00]} 1... Nf6 {[%clk 0:02:58.7]} 2. g3 {[%clk 0:03:01.3]}
2... g6 {[%clk 0:02:59.3]} 3. Bg2 {[%clk 0:03:02.7]} 3... Bg7 {[%clk 0:03:00.7]}
4. O-O {[%clk 0:03:04.4]} 4... d5 {[%clk 0:03:01.9]} 5. d4 {[%clk 0:03:05.4]}
5... O-O {[%clk 0:03:02.5]} 6. Nbd2 {[%clk 0:03:06.9]} 6... c6 {[%clk
0:03:03.4]} 7. b3 {[%clk 0:03:06.8]} 7... Bf5 {[%clk 0:03:03.8]} 8. Bb2 {[%clk
0:03:08]} 8... Nbd7 {[%clk 0:03:04.4]} 9. c4 {[%clk 0:03:09.2]} 9... a5 {[%clk
0:03:04.3]} 10. a4 {[%clk 0:03:09.2]} 10... Ne4 {[%clk 0:03:05.2]} 11. e3 {[%clk
0:03:10.5]} 11... Nxd2 {[%clk 0:03:04.7]} 12. Nxd2 {[%clk 0:03:12.4]} 12... Nf6
{[%clk 0:03:05.7]} 13. Rc1 {[%clk 0:03:13.3]} 13... Ne4 {[%clk 0:02:33.4]} 14.
Qe2 {[%clk 0:03:09]} 14... Nxd2 {[%clk 0:02:32.7]} 15. Qxd2 {[%clk 0:03:10.9]}
15... Qd7 {[%clk 0:02:11.1]} 16. Ba3 {[%clk 0:03:11.6]} 16... Rfc8 {[%clk
0:02:09.8]} 17. Rfe1 {[%clk 0:03:06.5]} 17... Bh3 {[%clk 0:02:10.1]} 18. Bxh3
{[%clk 0:03:03]} 18... Qxh3 {[%clk 0:02:10.8]} 19. Bxe7 {[%clk 0:03:03.1]} 19...
Qe6 {[%clk 0:02:05.2]} 20. Ba3 {[%clk 0:03:03]} 20... f5 {[%clk 0:02:06.8]} 21.
cxd5 {[%clk 0:02:55.4]} 21... Qxd5 {[%clk 0:02:07.7]} 22. Qd3 {[%clk 0:02:53.7]}
22... Kh8 {[%clk 0:02:06.7]} 23. Rc5 {[%clk 0:02:52.3]} 23... Qf7 {[%clk
0:01:59.1]} 24. Bb2 {[%clk 0:02:53]} 24... b6 {[%clk 0:01:53.3]} 25. Rc2 {[%clk
0:02:53.8]} 25... Qd5 {[%clk 0:01:49]} 26. e4 {[%clk 0:02:46.6]} 26... fxe4
{[%clk 0:01:49.4]} 27. Rxe4 {[%clk 0:02:48.5]} 27... Rd8 {[%clk 0:01:46.2]} 28.
Rce2 {[%clk 0:02:47.2]} 28... c5 {[%clk 0:01:41.7]} 29. Re7 {[%clk 0:02:44.1]}
29... Bxd4 {[%clk 0:01:37.5]} 30. Bxd4+ {[%clk 0:02:41.2]} 30... Qxd4 {[%clk
0:01:37.4]} 31. Qf3 {[%clk 0:02:36.6]} 31... Rf8 {[%clk 0:01:32.3]} 32. Qb7
{[%clk 0:02:37.3]} 32... h5 {[%clk 0:01:21.8]} 33. Rd7 {[%clk 0:02:33.6]} 33...
Qf6 {[%clk 0:01:16.9]} 34. Qe4 {[%clk 0:02:19]} 34... Rad8 {[%clk 0:01:11.6]}
35. Rb7 {[%clk 0:02:15.2]} 35... Rd4 {[%clk 0:00:57.3]} 36. Qe3 {[%clk
0:02:11.3]} 36... Rd1+ {[%clk 0:00:50.1]} 37. Re1 {[%clk 0:02:12.3]} 37... Qa1
{[%clk 0:00:49.9]} 38. Qh6+ {[%clk 0:02:10.7]} 1-0

[Event "*** Titled Tuesday 3|2 Blitz"]
[Site "Chess.com"]
[Date "2015.02.24"]
[Round "1"]
[White "EltajSafarli"]
[Black "GasconJR"]
[Result "1-0"]
[WhiteElo "2621"]
[BlackElo "2266"]
[TimeControl "180+2"]
[EndTime "11:06:19 PST"]
[Termination "EltajSafarli won by resignation"]

1. e4 {[%clk 0:02:46.5]} 1... e5 {[%clk 0:02:57.2]} 2. Nf3 {[%clk 0:02:47.4]}
2... Nc6 {[%clk 0:02:57.8]} 3. Bb5 {[%clk 0:02:48.3]} 3... Nf6 {[%clk
0:02:57.9]} 4. O-O {[%clk 0:02:48.4]} 4... Nxe4 {[%clk 0:02:58.8]} 5. d4 {[%clk
0:02:48.3]} 5... Nd6 {[%clk 0:02:59.9]} 6. dxe5 {[%clk 0:02:48.8]} 6... Nxb5
{[%clk 0:02:59.8]} 7. a4 {[%clk 0:02:49.7]} 7... d6 {[%clk 0:02:59.7]} 8. e6
{[%clk 0:02:47.1]} 8... fxe6 {[%clk 0:03:00.5]} 9. axb5 {[%clk 0:02:44.6]} 9...
Ne7 {[%clk 0:03:02.1]} 10. Nc3 {[%clk 0:02:45.9]} 10... Nf5 {[%clk 0:02:56.2]}
11. Re1 {[%clk 0:02:43.7]} 11... Be7 {[%clk 0:02:48.5]} 12. Nd4 {[%clk
0:02:42.6]} 12... Nxd4 {[%clk 0:02:38.4]} 13. Qxd4 {[%clk 0:02:44.5]} 13... Bf6
{[%clk 0:02:38.4]} 14. Qd3 {[%clk 0:02:33.6]} 14... O-O {[%clk 0:02:36.3]} 15.
Ne4 {[%clk 0:02:27.1]} 15... Be7 {[%clk 0:02:29.8]} 16. b3 {[%clk 0:02:25.8]}
16... d5 {[%clk 0:02:23.6]} 17. Nd2 {[%clk 0:02:22.3]} 17... Bf6 {[%clk
0:02:19.5]} 18. Ra2 {[%clk 0:02:21.9]} 18... Bd7 {[%clk 0:01:56.4]} 19. Nf3
{[%clk 0:02:17.7]} 19... Qe7 {[%clk 0:01:19.8]} 20. Ba3 {[%clk 0:02:14.3]} 20...
Qf7 {[%clk 0:01:11.1]} 21. Bxf8 {[%clk 0:02:16.2]} 21... Qxf8 {[%clk 0:01:05.3]}
22. Qe3 {[%clk 0:02:17.4]} 22... b6 {[%clk 0:01:05.8]} 23. h3 {[%clk 0:02:13.7]}
23... Bxb5 {[%clk 0:01:06.4]} 24. Qxe6+ {[%clk 0:02:10.7]} 24... Qf7 {[%clk
0:01:07.7]} 25. Qf5 {[%clk 0:02:06.3]} 25... Bd7 {[%clk 0:01:05.2]} 26. Qf4
{[%clk 0:02:05.6]} 26... c5 {[%clk 0:00:51]} 27. Qd6 {[%clk 0:01:55.1]} 27...
Bf5 {[%clk 0:00:46.9]} 28. Ne5 {[%clk 0:01:51]} 28... Bxe5 {[%clk 0:00:47.5]}
29. Rxe5 {[%clk 0:01:47.3]} 29... d4 {[%clk 0:00:41.2]} 30. Re7 {[%clk
0:01:44.4]} 30... Qf6 {[%clk 0:00:41.8]} 31. Qd5+ {[%clk 0:01:42.9]} 1-0

[Event "*** Titled Tuesday 3|2 Blitz"]
[Site "Chess.com"]
[Date "2015.02.24"]
[Round "1"]
[White "igorkovalenko"]
[Black "Cantinflitas"]
[Result "1-0"]
[WhiteElo "2450"]
[BlackElo "2070"]
[TimeControl "180+2"]
[EndTime "11:06:31 PST"]
[Termination "igorkovalenko won by resignation"]

1. d3 {[%clk 0:02:16]} 1... c5 {[%clk 0:00:46.4]} 2. Nf3 {[%clk 0:02:17.9]} 2...
e6 {[%clk 0:00:47.7]} 3. e4 {[%clk 0:02:19.4]} 3... Nc6 {[%clk 0:00:48.9]} 4.
Nbd2 {[%clk 0:02:20.9]} 4... Qc7 {[%clk 0:00:50.4]} 5. g3 {[%clk 0:02:22.2]}
5... Nge7 {[%clk 0:00:50.7]} 6. Bg2 {[%clk 0:02:24.1]} 6... Ng6 {[%clk
0:00:51.6]} 7. O-O {[%clk 0:02:26]} 7... h5 {[%clk 0:00:52.5]} 8. h4 {[%clk
0:02:26.2]} 8... b6 {[%clk 0:00:48.5]} 9. c3 {[%clk 0:02:27.5]} 9... Bb7 {[%clk
0:00:49.6]} 10. Re1 {[%clk 0:02:28.2]} 10... f6 {[%clk 0:00:50.8]} 11. a3 {[%clk
0:02:29]} 11... Be7 {[%clk 0:00:51.9]} 12. b4 {[%clk 0:02:30.2]} 12... a6 {[%clk
0:00:53]} 13. Bb2 {[%clk 0:02:31.2]} 13... Nd8 {[%clk 0:00:54.1]} 14. d4 {[%clk
0:02:32]} 14... Nf7 {[%clk 0:00:53.9]} 15. Qe2 {[%clk 0:02:32.3]} 15... Nh6
{[%clk 0:00:55.1]} 16. Nh2 {[%clk 0:02:31.7]} 16... Bd6 {[%clk 0:00:52.1]} 17.
Nc4 {[%clk 0:02:25.7]} 17... Be7 {[%clk 0:00:49.1]} 18. d5 {[%clk 0:02:21.4]}
18... Rc8 {[%clk 0:00:48.4]} 19. Rac1 {[%clk 0:02:14.9]} 19... e5 {[%clk
0:00:47.4]} 20. Qxh5 {[%clk 0:02:14.4]} 20... Kf7 {[%clk 0:00:43.4]} 21. Qe2
{[%clk 0:02:15.8]} 21... d6 {[%clk 0:00:40.8]} 22. Bh3 {[%clk 0:02:15.1]} 22...
Nf8 {[%clk 0:00:38.1]} 23. Bxc8 {[%clk 0:02:13.2]} 23... Bxc8 {[%clk 0:00:37.7]}
24. Ne3 {[%clk 0:02:14.6]} 24... g5 {[%clk 0:00:32.6]} 25. hxg5 {[%clk
0:02:15.7]} 25... fxg5 {[%clk 0:00:33.2]} 26. Qf3+ {[%clk 0:02:10.6]} 26... Kg6
{[%clk 0:00:31.2]} 27. g4 {[%clk 0:02:10.9]} 27... Nh7 {[%clk 0:00:28.8]} 28.
Nf5 {[%clk 0:02:11]} 28... Rf8 {[%clk 0:00:27.5]} 29. Qh3 {[%clk 0:02:10.9]}
29... Ng8 {[%clk 0:00:26.5]} 30. f3 {[%clk 0:02:11.5]} 30... Nhf6 {[%clk
0:00:26.9]} 31. Nf1 {[%clk 0:02:12.1]} 31... Rf7 {[%clk 0:00:27.3]} 32. N1e3
{[%clk 0:02:12.9]} 32... Rh7 {[%clk 0:00:28.4]} 33. Qg3 {[%clk 0:02:14.5]} 33...
Nh6 {[%clk 0:00:27.6]} 34. Kg2 {[%clk 0:02:15.6]} 34... Bf8 {[%clk 0:00:25.7]}
35. Rh1 {[%clk 0:02:16.6]} 35... Nxf5 {[%clk 0:00:21.4]} 36. gxf5+ {[%clk
0:02:17.1]} 36... Kg7 {[%clk 0:00:22.1]} 37. Qxg5+ {[%clk 0:02:17.3]} 37... Kh8
{[%clk 0:00:21.7]} 38. Qxf6+ {[%clk 0:02:17.7]} 38... Bg7 {[%clk 0:00:21.9]} 39.
Rxh7+ {[%clk 0:02:18]} 39... Kxh7 {[%clk 0:00:23.8]} 40. Qg6+ {[%clk 0:02:17]}
40... Kg8 {[%clk 0:00:25]} 41. f6 {[%clk 0:02:15.9]} 1-0

[Event "*** Titled Tuesday 3|2 Blitz"]
[Site "Chess.com"]
[Date "2015.02.24"]
[Round "1"]
[White "Carolina-moon"]
[Black "SuPeR_Fm"]
[Result "0-1"]
[WhiteElo "1943"]
[BlackElo "2354"]
[TimeControl "180+2"]
[EndTime "11:07:00 PST"]
[Termination "SuPeR_Fm won by resignation"]

1. e4 {[%clk 0:03:00]} 1... e6 {[%clk 0:02:49.8]} 2. d4 {[%clk 0:03:00.2]} 2...
d5 {[%clk 0:02:50.4]} 3. Nd2 {[%clk 0:03:01.2]} 3... Nf6 {[%clk 0:02:51.2]} 4.
e5 {[%clk 0:03:01.9]} 4... Ne4 {[%clk 0:02:52.1]} 5. c3 {[%clk 0:03:02.1]} 5...
c5 {[%clk 0:02:52.7]} 6. Bd3 {[%clk 0:02:57.7]} 6... Nxd2 {[%clk 0:02:51.2]} 7.
Bxd2 {[%clk 0:02:56.9]} 7... Nc6 {[%clk 0:02:52.4]} 8. Nf3 {[%clk 0:02:55.9]}
8... Qb6 {[%clk 0:02:51.8]} 9. O-O {[%clk 0:02:40.5]} 9... cxd4 {[%clk
0:02:45.4]} 10. cxd4 {[%clk 0:02:41.5]} 10... Nxd4 {[%clk 0:02:47.3]} 11. Nxd4
{[%clk 0:02:42.5]} 11... Qxd4 {[%clk 0:02:48.8]} 12. Bc3 {[%clk 0:02:40.7]}
12... Qb6 {[%clk 0:02:43.5]} 13. Kh1 {[%clk 0:02:41]} 13... Bd7 {[%clk
0:02:37.1]} 14. a4 {[%clk 0:02:39.8]} 14... Bb4 {[%clk 0:02:20.7]} 15. Bxb4
{[%clk 0:02:27.2]} 15... Qxb4 {[%clk 0:02:22.6]} 16. Qh5 {[%clk 0:02:22.7]}
16... h6 {[%clk 0:02:01]} 17. f4 {[%clk 0:01:48]} 17... O-O {[%clk 0:01:50.2]}
18. Rf3 {[%clk 0:01:26]} 18... f5 {[%clk 0:01:38]} 19. exf6 {[%clk 0:01:20.8]}
19... Rxf6 {[%clk 0:01:36.7]} 20. Raf1 {[%clk 0:01:12.9]} 20... Raf8 {[%clk
0:01:35.4]} 21. b3 {[%clk 0:00:57.6]} 21... Rxf4 {[%clk 0:00:54.5]} 22. Qg6
{[%clk 0:00:57.2]} 22... Rxf3 {[%clk 0:00:55.2]} 23. Qh7+ {[%clk 0:00:58.3]}
23... Kf7 {[%clk 0:00:56.4]} 24. Rxf3+ {[%clk 0:00:59.7]} 24... Ke8 {[%clk
0:00:56.2]} 25. Qg6+ {[%clk 0:00:59]} 25... Kd8 {[%clk 0:00:56.4]} 26. Qxg7
{[%clk 0:00:40.1]} 26... Qe1+ {[%clk 0:00:54.3]} 27. Bf1 {[%clk 0:00:41]} 27...
Qxf1+ {[%clk 0:00:54]} 0-1

[Event "*** Titled Tuesday 3|2 Blitz"]
[Site "Chess.com"]
[Date "2015.02.24"]
[Round "1"]
[White "CraiggoryC"]
[Black "lorcho"]
[Result "0-1"]
[WhiteElo "1982"]
[BlackElo "2367"]
[TimeControl "180+2"]
[EndTime "11:07:05 PST"]
[Termination "lorcho won by resignation"]

1. e4 {[%clk 0:02:59.5]} 1... c6 {[%clk 0:02:58.1]} 2. d4 {[%clk 0:02:59.7]}
2... d5 {[%clk 0:02:59.3]} 3. e5 {[%clk 0:03:01.4]} 3... c5 {[%clk 0:02:59.6]}
4. c3 {[%clk 0:03:00.4]} 4... Nc6 {[%clk 0:03:00]} 5. Nf3 {[%clk 0:03:00.8]}
5... Bg4 {[%clk 0:03:01.1]} 6. dxc5 {[%clk 0:02:58.8]} 6... Nxe5 {[%clk
0:02:58]} 7. Bb5+ {[%clk 0:02:55.9]} 7... Nc6 {[%clk 0:02:58.6]} 8. Qa4 {[%clk
0:02:48.3]} 8... Bd7 {[%clk 0:02:57.3]} 9. O-O {[%clk 0:02:39.9]} 9... a6 {[%clk
0:02:58.5]} 10. Bxc6 {[%clk 0:02:37.2]} 10... Bxc6 {[%clk 0:03:00.4]} 11. Qh4
{[%clk 0:02:36.9]} 11... e6 {[%clk 0:02:59.7]} 12. Qxd8+ {[%clk 0:02:34]} 12...
Rxd8 {[%clk 0:03:01.6]} 13. b4 {[%clk 0:02:34.8]} 13... g6 {[%clk 0:02:54.4]}
14. Bf4 {[%clk 0:02:20.9]} 14... Bg7 {[%clk 0:02:54.6]} 15. Be5 {[%clk
0:02:22.1]} 15... f6 {[%clk 0:02:55.2]} 16. Bd6 {[%clk 0:02:15.5]} 16... Nh6
{[%clk 0:02:56.3]} 17. Nd4 {[%clk 0:02:12.5]} 17... Kf7 {[%clk 0:02:54.2]} 18.
Nxc6 {[%clk 0:02:02.5]} 18... bxc6 {[%clk 0:02:55.2]} 19. Nd2 {[%clk 0:02:03.4]}
19... Rd7 {[%clk 0:02:52.8]} 20. Nb3 {[%clk 0:02:03.1]} 20... e5 {[%clk
0:02:52.6]} 21. f4 {[%clk 0:01:47.9]} 21... e4 {[%clk 0:02:45.1]} 22. Nd4 {[%clk
0:01:42.7]} 22... Rc8 {[%clk 0:02:45.7]} 23. f5 {[%clk 0:01:42.8]} 23... gxf5
{[%clk 0:02:33.1]} 24. Nxf5 {[%clk 0:01:43.3]} 24... Nxf5 {[%clk 0:02:35]} 25.
Rxf5 {[%clk 0:01:44]} 25... Ke6 {[%clk 0:02:36.6]} 26. Raf1 {[%clk 0:01:36.2]}
26... a5 {[%clk 0:02:37.8]} 27. a3 {[%clk 0:01:25.5]} 27... axb4 {[%clk
0:02:38.7]} 28. axb4 {[%clk 0:01:23.7]} 28... Ra8 {[%clk 0:02:39.2]} 29. Rh5
{[%clk 0:01:24.6]} 29... Bh8 {[%clk 0:02:39.7]} 30. g4 {[%clk 0:01:19.2]} 30...
Ra3 {[%clk 0:02:39.4]} 31. Rh3 {[%clk 0:01:19.4]} 31... Rg7 {[%clk 0:02:38.1]}
32. Rg3 {[%clk 0:01:20.3]} 32... h5 {[%clk 0:02:31.3]} 33. gxh5 {[%clk
0:00:57.4]} 33... Rxg3+ {[%clk 0:02:33.2]} 34. hxg3 {[%clk 0:00:57.4]} 34...
Rxc3 {[%clk 0:02:27.3]} 35. h6 {[%clk 0:00:48.9]} 35... d4 {[%clk 0:02:28.3]}
36. Kg2 {[%clk 0:00:45.4]} 36... Rc2+ {[%clk 0:02:24.7]} 37. Kh3 {[%clk
0:00:46.2]} 37... f5 {[%clk 0:02:23.2]} 38. Bf8 {[%clk 0:00:44.5]} 38... d3
{[%clk 0:02:10]} 39. Bg7 {[%clk 0:00:45.3]} 39... Bxg7 {[%clk 0:02:06.3]} 40.
hxg7 {[%clk 0:00:44.5]} 40... Kf7 {[%clk 0:02:07.2]} 41. Rxf5+ {[%clk
0:00:43.3]} 41... Kxg7 {[%clk 0:02:08.3]} 42. Kg4 {[%clk 0:00:21.2]} 42... d2
{[%clk 0:02:07.6]} 43. Rg5+ {[%clk 0:00:22.6]} 43... Kf6 {[%clk 0:02:06]} 44.
Rf5+ {[%clk 0:00:24]} 44... Ke6 {[%clk 0:02:06.9]} 45. Kf4 {[%clk 0:00:20.8]}
45... d1=Q {[%clk 0:02:06.3]} 46. Re5+ {[%clk 0:00:22]} 46... Kd7 {[%clk
0:02:06.9]} 0-1